bitfinex/quotes_SOLUSD_20211001
["timestamp","ask_amount","ask_price","bid_price","bid_amount"]
[1633108318781,19.39945255,157.57,157.43,23.07833053]
[1633108319783,15.888,157.55,157.43,23.07833053]
[1633108319982,2.67,157.54,157.39,6.35027564]
[1633108320187,2.67,157.54,157.4,6.39348612]
[1633108320784,76.5819,157.54,157.4,6.39348612]
[1633108321186,76.5819,157.54,157.41,26.60739297]
[1633108321785,76.5819,157.54,157.42,6.39281235]
[1633108321988,76.5819,157.54,157.42,10.0722333]
[1633108322187,2.67,157.54,157.43,3.67937343]
[1633108322386,2.67,157.54,157.42,6.39281235]
[1633108322387,2.67,157.54,157.42,10.07224283]
[1633108322586,2.67,157.54,157.44,3.67907284]
[1633108324188,2.67,157.54,157.43,3.67930324]
[1633108324387,2.67,157.54,157.45,6.39234705]
[1633108324589,2.67,157.54,157.44,3.67913909]
[1633108325688,2.67,157.54,157.45,3.679362]
[1633108325891,2.67,157.54,157.45,10.07212159]
[1633108326092,2.67,157.54,157.45,3.679362]
[1633108326489,2.67,157.57,157.45,3.679362]
[1633108326689,2.67,157.57,157.48,29.12905108]
[1633108326890,2.67,157.57,157.49,6.39186194]
[1633108327092,2.67,157.57,157.49,10.0704814]
[1633108327289,75.7984,157.6,157.49,10.0704814]
[1633108327491,75.7984,157.6,157.49,6.39186194]
[1633108328794,75.7984,157.6,157.49,10.07010458]
[1633108329596,75.7984,157.6,157.49,6.39186194]
[1633108330594,75.7984,157.6,157.48,31.79905108]
[1633108332098,75.7984,157.6,157.49,6.3912121]
[1633108332497,75.7984,157.6,157.49,10.06897916]
[1633108332698,75.7984,157.6,157.5,0.02088]
[1633108333499,75.7984,157.6,157.49,10.06897916]
[1633108335601,75.7984,157.6,157.49,6.3912121]
[1633108336403,2.67,157.63,157.5,2.67]
[1633108336602,2.67,157.63,157.51,6.38933687]
[1633108336800,2.67,157.66,157.52,6.34632719]
[1633108337005,2.67,157.66,157.53,6.38866061]
[1633108337203,2.67,157.66,157.54,21.48885652]
[1633108347706,2.67,157.66,157.51,76.5985]
[1633108347707,2.67,157.66,157.51,2.67]
[1633108347908,2.5649991,157.62,157.48,2.67]
[1633108348108,2.67,157.61,157.48,2.67]
[1633108348308,29.67289821,157.61,157.48,2.67]
[1633108348511,44.60899357,157.61,157.48,2.67]
[1633108348706,44.60899357,157.61,157.42,3.67585625]
[1633108348707,27.00289821,157.6,157.47,28.37197549]
[1633108348908,2.69088,157.59,157.47,28.37197549]
[1633108351011,2.69088,157.59,157.43,2.67]
[1633108351412,29.69377821,157.59,157.43,2.67]
[1633108352015,29.69377821,157.59,157.43,23.98719652]
[1633108352212,74.2027,157.58,157.43,23.98719652]
[1633108352413,2.67,157.57,157.43,23.98719652]
[1633108353314,23.349,157.57,157.43,23.98719652]
[1633108357013,23.349,157.57,157.43,2.67]
[1633108357214,15.8857,157.56,157.43,2.67]
[1633108357415,2.67,157.55,157.43,2.67]
[1633108358015,2.67,157.55,157.43,25.27375376]
[1633108360621,2.67,157.55,157.44,6.38728275]
[1633108360817,2.67,157.55,157.44,9.05728275]
[1633108361018,2.67,157.55,157.44,2.67]
[1633108361219,3.27869536,157.61,157.45,95.0]
[1633108361419,2.67,157.6,157.45,95.0]
[1633108362022,2.67,157.6,157.46,75.6741]
[1633108365222,2.67,157.6,157.44,2.67]
[1633108366024,15.8843,157.58,157.44,2.67]
[1633108366223,2.67,157.57,157.44,2.67]
[1633108367025,2.67,157.57,157.43,22.60375376]
[1633108369330,400.04927119,157.56,157.43,22.60375376]
[1633108369530,2.67,157.55,157.43,22.60375376]
[1633108369731,2.67,157.55,157.4,2.67]
[1633108370733,2.67,157.55,157.4,25.82961799]
[1633108372631,2.54746185,157.53,157.4,25.82961799]
[1633108372832,5.21746185,157.53,157.4,25.82961799]
[1633108373032,2.67,157.53,157.4,25.82961799]
[1633108375435,2.67,157.53,157.41,6.38970302]
[1633108375635,2.67,157.53,157.41,10.06808058]
[1633108376436,2.67,157.53,157.42,3.67841112]
[1633108376735,402.71927119,157.56,157.44,3.67908467]
[1633108377936,402.71927119,157.56,157.45,3.67894565]
[1633108378135,402.71927119,157.56,157.46,24.96622574]
[1633108378338,2.67,157.56,157.47,6.39195927]
[1633108379537,2.67,157.56,157.47,10.07059042]
[1633108379739,2.67,157.56,157.47,6.39195927]
[1633108379940,2.67,157.56,157.47,10.07039655]
[1633108381140,2.67,157.56,157.47,6.39195927]
[1633108382938,2.67,157.56,157.46,24.96622574]
[1633108385339,2.67,157.56,157.47,6.39166355]
[1633108387339,2.67,157.6,157.47,9.06166355]
[1633108387540,2.67,157.6,157.48,6.36850074]
[1633108388640,2.67,157.6,157.47,2.67]
[1633108388841,2.67,157.6,157.47,76.9133]
[1633108389241,2.67,157.6,157.48,6.29152837]
[1633108389647,339.57765714,157.63,157.49,2.67]
[1633108391445,2.67,157.63,157.49,2.67]
[1633108394147,2.67,157.63,157.49,51.73377592]
[1633108394348,2.67,157.63,157.5,6.23040738]
[1633108394548,2.67,157.63,157.52,28.92407418]
[1633108394749,2.67,157.63,157.52,31.59407418]
[1633108395166,2.67,157.63,157.52,2.67]
[1633108396166,2.67,157.63,157.52,31.23812491]
[1633108396967,2.67,157.66,157.52,31.23812491]
[1633108398769,2.67,157.66,157.52,2.67]
[1633108398970,27.00289821,157.65,157.52,2.67]
[1633108399170,2.67,157.64,157.52,2.67]
[1633108399369,2.67,157.64,157.47,2.67]
[1633108399571,81.5375,157.64,157.47,2.67]
[1633108399771,81.5375,157.64,157.48,22.62606664]
[1633108403972,2.67,157.64,157.48,22.62606664]
[1633108406575,15.8788,157.62,157.48,22.62606664]
[1633108406776,2.67,157.61,157.48,22.62606664]
[1633108406978,2.67,157.61,157.47,76.0926]
[1633108407978,2.67,157.61,157.47,98.52700697]
[1633108408677,2.67,157.61,157.48,6.39326066]
[1633108410978,2.67,157.61,157.48,10.07244436]
[1633108414178,29.67289821,157.61,157.46,3.68008431]
[1633108414377,49.98189821,157.61,157.46,10.07412785]
[1633108414577,49.98189821,157.61,157.46,6.39404354]
[1633108414978,49.98189821,157.61,157.47,28.27607771]
[1633108415181,78.4357,157.6,157.48,6.39389427]
[1633108415378,2.67,157.59,157.48,6.39389427]
[1633108415577,454.81172917,157.59,157.48,6.39389427]
[1633108418180,454.81172917,157.59,157.47,27.26617274]
[1633108418380,454.81172917,157.59,157.48,6.39376712]
[1633108419381,454.81172917,157.59,157.47,27.26617274]
[1633108422388,454.81172917,157.59,157.47,2.67]
[1633108422587,2.67,157.59,157.47,2.67]
[1633108423589,2.67,157.59,157.43,6.35052182]
[1633108423789,2.67,157.59,157.43,2.67]
[1633108426990,2.54570752,157.55,157.4,6.35066028]
[1633108427190,2.67,157.54,157.4,6.35066028]
[1633108427392,2.67,157.54,157.41,6.39442778]
[1633108427589,2.56825181,157.49,157.39,3.68087268]
[1633108427791,2.56825181,157.49,157.38,2.67]
[1633108427991,2.67,157.52,157.39,32.91543097]
[1633108428391,2.67,157.52,157.39,26.52197067]
[1633108428793,18.559,157.52,157.39,26.52197067]
[1633108433594,42.009,157.52,157.39,26.52197067]
[1633108435594,44.49936871,157.52,157.38,2.67]
[1633108436797,74.4123,157.51,157.38,2.67]
[1633108440799,2.67,157.52,157.38,2.67]
[1633108441002,536.00026264,157.54,157.38,28.37948275]
[1633108441201,2.67,157.58,157.39,100.70956585]
[1633108441399,2.67,157.58,157.42,21.93864869]
[1633108441599,2.67,157.61,157.43,8.94607173]
[1633108441801,2.67,157.61,157.44,6.30982584]
[1633108442002,2.67,157.61,157.45,6.27607397]
[1633108442202,79.6872,157.64,157.46,6.29500917]
[1633108442400,79.6872,157.64,157.48,24.67899003]
[1633108442603,79.6872,157.64,157.49,2.67]
[1633108442801,79.6872,157.64,157.49,2.69088]
[1633108445205,79.6872,157.64,157.49,30.84321618]
[1633108446403,77.0172,157.64,157.49,137.3693437]
[1633108446606,77.0172,157.64,157.5,0.02088]
[1633108446803,2.67,157.68,157.51,2.67]
[1633108447005,2.67,157.68,157.52,0.02088]
[1633108447206,2.67,157.68,157.54,24.27469602]
[1633108447403,2.67,157.68,157.55,2.67]
[1633108448604,2.67,157.68,157.52,0.02088]
[1633108448605,2.58043526,157.66,157.52,0.02088]
[1633108448804,2.58043526,157.66,157.44,2.67]
[1633108448805,15.8814,157.63,157.44,2.67]
[1633108449004,2.69088,157.62,157.44,2.67]
[1633108449204,47.92600305,157.62,157.41,444.82016265]
[1633108449404,52.21374259,157.61,157.41,444.82016265]
[1633108449604,2.69088,157.6,157.42,24.32906102]
[1633108449804,0.02088,157.59,157.42,24.32906102]
[1633108450005,2.67,157.58,157.42,24.32906102]
[1633108450408,47.90512305,157.58,157.42,24.32906102]
[1633108450605,19.90164201,157.57,157.42,24.32906102]
[1633108450806,2.67,157.56,157.42,24.32906102]
[1633108451207,12.17075291,157.55,157.42,24.32906102]
[1633108451405,14.84075291,157.55,157.42,24.32906102]
[1633108452407,483.67281404,157.55,157.42,24.32906102]
[1633108452606,483.67281404,157.55,157.36,2.69088]
[1633108452806,19.90164201,157.54,157.36,2.69088]
[1633108453008,2.67,157.53,157.36,2.67]
[1633108453207,66.35510148,157.53,157.36,2.67]
[1633108453406,19.90164201,157.52,157.36,2.67]
[1633108453610,2.67,157.51,157.36,31.46569141]
[1633108454006,19.90164201,157.5,157.36,31.46569141]
[1633108454208,2.67,157.49,157.36,31.46569141]
[1633108454606,2.67,157.49,157.36,2.67]
[1633108454808,22.57164201,157.49,157.32,2.67]
[1633108455610,22.57164201,157.49,157.33,23.59130623]
[1633108460112,22.57164201,157.49,157.33,23.09130623]
[1633108460511,31.75,157.48,157.33,23.09130623]
[1633108460716,2.67,157.47,157.33,23.09130623]
[1633108461311,2.67,157.47,157.32,2.67]
[1633108461511,14.84075291,157.47,157.29,2.67]
[1633108462311,14.84075291,157.47,157.3,25.89921967]
[1633108462712,2.44831895,157.46,157.3,25.89921967]
[1633108462914,2.67,157.45,157.3,25.89921967]
[1633108463111,22.57164201,157.45,157.27,2.67]
[1633108463314,19.90164201,157.44,157.27,2.67]
[1633108463512,2.67,157.43,157.27,2.67]
[1633108463911,22.57164201,157.43,157.27,2.67]
[1633108464113,2.67,157.43,157.28,28.91658427]
[1633108464314,2.67,157.43,157.29,2.69088]
[1633108464513,2.67,157.43,157.3,0.02088]
[1633108464914,2.67,157.43,157.29,2.67]
[1633108466715,2.67,157.43,157.29,77.6549]
[1633108468417,2.67,157.43,157.29,2.67]
[1633108468818,23.889,157.43,157.29,2.67]
[1633108469015,14.33741958,157.42,157.25,2.67]
[1633108469218,2.67,157.41,157.25,2.67]
[1633108469615,18.81830867,157.4,157.25,2.67]
[1633108469816,2.42534815,157.38,157.2,0.02088]
[1633108470017,2.67,157.37,157.21,2.67]
[1633108470219,21.48830867,157.37,157.21,2.67]
[1633108470417,18.81830867,157.36,157.21,2.67]
[1633108470618,2.4070076,157.33,157.21,2.67]
[1633108470819,2.67,157.32,157.21,25.83561898]
[1633108471219,2.67,157.32,157.21,25.33561898]
[1633108471420,2.67,157.32,157.21,2.17]
[1633108472423,2.67,157.32,157.22,27.47228554]
[1633108472623,2.67,157.35,157.22,27.47228554]
[1633108472822,2.67,157.35,157.23,2.67]
[1633108473026,2.67,157.35,157.23,2.69088]
[1633108474927,2.67,157.35,157.25,25.70963407]
[1633108475525,2.67,157.39,157.26,2.67]
[1633108477126,2.67,157.39,157.25,25.70963407]
[1633108479332,0.02088,157.38,157.25,25.70963407]
[1633108479530,2.67,157.37,157.25,25.70963407]
[1633108479932,2.67,157.37,157.21,2.67]
[1633108480129,20.47719756,157.37,157.21,2.67]
[1633108480330,20.47719756,157.37,157.18,2.67]
[1633108480531,52.22719756,157.37,157.18,2.67]
[1633108480935,76.9595,157.36,157.19,24.594853]
[1633108481132,2.67,157.35,157.19,24.594853]
[1633108481532,26.337,157.35,157.19,24.594853]
[1633108481731,42.2434,157.35,157.19,24.594853]
[1633108482130,42.2434,157.35,157.2,6.39202609]
[1633108483132,42.2434,157.35,157.2,10.07339991]
[1633108483330,42.2434,157.35,157.19,24.594853]
[1633108488133,42.2434,157.35,157.18,2.67]
[1633108488733,42.2434,157.35,157.19,6.39276069]
[1633108489133,42.2434,157.35,157.2,22.89149163]
[1633108492537,2.67,157.35,157.2,25.56149163]
[1633108492939,2.67,157.35,157.22,3.68185625]
[1633108493137,2.67,157.35,157.23,25.34103436]
[1633108493337,2.67,157.35,157.24,6.39330662]
[1633108493537,2.67,157.38,157.25,2.67]
[1633108493736,2.67,157.38,157.26,26.75909918]
[1633108494736,2.67,157.38,157.25,2.67]
[1633108494939,26.43,157.38,157.22,6.35201233]
[1633108495137,26.43,157.38,157.23,6.4572642]
[1633108495337,26.43,157.38,157.22,2.67]
[1633108495739,28.23423515,157.37,157.22,27.50943632]
[1633108495939,2.67,157.36,157.22,27.50943632]
[1633108498941,2.67,157.36,157.23,6.45996738]
[1633108501343,2.67,157.36,157.23,10.14406537]
[1633108501947,2.67,157.36,157.25,30.34609616]
[1633108502743,2.67,157.36,157.26,6.45936911]
[1633108503144,2.67,157.36,157.26,10.14298958]
[1633108503744,2.67,157.36,157.27,3.6834016]
[1633108503945,2.67,157.39,157.28,30.59889869]
[1633108504146,2.67,157.39,157.29,10.14170211]
[1633108504746,2.67,157.39,157.29,6.45867145]
[1633108504945,2.67,157.39,157.3,3.68366727]
[1633108505145,2.67,157.39,157.29,10.14237074]
[1633108507150,2.67,157.39,157.29,6.45867145]
[1633108509349,2.67,157.39,157.34,0.1700962]
[1633108510250,2.67,157.43,157.34,0.1700962]
[1633108511251,2.67,157.43,157.35,6.45734382]
[1633108511651,2.67,157.43,157.34,23.38448907]
[1633108514453,2.67,157.43,157.34,23.21439287]
[1633108514653,2.67,157.43,157.38,0.1700962]
[1633108516955,2.67,157.46,157.38,0.1700962]
[1633108519762,2.67,157.46,157.34,23.21439287]
[1633108519966,2.67,157.46,157.4,0.1700962]
[1633108523578,2.67,157.46,157.4,9.62e-05]
[1633108523778,19.3476762,157.46,157.4,9.62e-05]
[1633108524379,48.4433382,157.46,157.4,9.62e-05]
[1633108524779,74.9187,157.45,157.4,9.62e-05]
[1633108524979,74.9187,157.45,157.27,26.19570087]
[1633108524980,2.67,157.44,157.27,26.19570087]
[1633108525679,439.67270475,157.44,157.27,26.19570087]
[1633108526682,439.67270475,157.44,157.28,6.47617724]
[1633108526881,439.67270475,157.44,157.3,22.53834118]
[1633108528782,439.67270475,157.44,157.35,0.6]
[1633108538793,455.57190475,157.44,157.35,0.6]
[1633108538993,472.24958095,157.44,157.35,0.6]
[1633108541393,503.99958095,157.44,157.35,0.6]
[1633108543499,472.24958095,157.44,157.35,0.6]
[1633108548006,474.7790721,157.44,157.35,0.6]
[1633108548204,1.53527081,157.43,157.35,0.6]
[1633108548404,2.67,157.42,157.35,0.6]
[1633108549406,15.9024,157.4,157.35,0.6]
[1633108549605,2.67,157.39,157.25,0.02088]
[1633108549806,2.67,157.39,157.24,3.70636019]
[1633108550005,92.7160762,157.39,157.25,0.02088]
[1633108550806,92.7160762,157.39,157.25,6.48254776]
[1633108551604,92.7160762,157.39,157.23,10.14605873]
[1633108552004,124.4660762,157.39,157.23,6.46102315]
[1633108552205,16.6776762,157.38,157.23,6.46102315]
[1633108552405,2.67,157.37,157.23,6.46102315]
[1633108554206,19.3476762,157.37,157.23,6.46102315]
[1633108554405,19.3476762,157.37,157.22,0.02088]
[1633108555207,19.3476762,157.37,157.22,6.48194447]
[1633108556608,19.3476762,157.37,157.22,0.02088]
[1633108556807,19.3476762,157.37,157.22,6.48055072]
[1633108557508,19.3476762,157.37,157.22,0.02088]
[1633108561410,3.17985246,157.24,157.22,0.02088]
[1633108562610,3.17985246,157.24,157.21,27.92456941]
[1633108563410,3.17985246,157.24,157.2,2.67]
[1633108564611,3.17985246,157.24,157.19,77.6709]
[1633108565613,3.17985246,157.24,157.2,27.37764586]
[1633108566415,2.67,157.32,157.21,82.0]
[1633108567015,2.67,157.36,157.22,9.12782706]
[1633108567215,2.67,157.36,157.23,28.8578717]
[1633108567417,2.67,157.36,157.23,31.5278717]
[1633108567618,1.53527081,157.4,157.23,31.5278717]
[1633108567817,76.0384,157.39,157.24,6.45745304]
[1633108568017,76.0384,157.39,157.25,66.23088]
[1633108568018,2.67,157.39,157.25,66.23088]
[1633108568220,2.67,157.43,157.26,37.12735438]
[1633108568417,2.67,157.43,157.28,3.68155573]
[1633108568618,2.67,157.43,157.29,31.99318443]
[1633108569217,2.67,157.43,157.3,6.45625618]
[1633108569419,2.67,157.43,157.3,9.12625618]
[1633108569619,2.67,157.43,157.31,6.45620804]
[1633108569818,2.67,157.43,157.32,22.95322839]
[1633108570017,2.67,157.48,157.32,25.62322839]
[1633108570220,2.67,157.48,157.33,73.67428146]
[1633108570418,2.67,157.48,157.34,86.27008276]
[1633108570621,2.67,157.52,157.35,37.82489516]
[1633108570819,2.67,157.52,157.36,2.67]
[1633108571024,2.67,157.52,157.36,9.12390616]
[1633108571221,2.67,157.52,157.39,24.55410938]
[1633108571423,2.67,157.52,157.39,27.22410938]
[1633108585532,2.67,157.55,157.39,90.76410938]
[1633108586333,2.67,157.55,157.4,78.4934]
[1633108586530,2.67,157.55,157.41,2.67]
[1633108586732,2.67,157.59,157.42,23.93150359]
[1633108586930,2.67,157.59,157.43,2.67]
[1633108587533,2.67,157.59,157.43,66.21]
[1633108587731,2.67,157.59,157.43,115.06070828]
[1633108588330,2.67,157.59,157.43,2.67]
[1633108599436,2.67,157.59,157.44,24.51532802]
[1633108599635,72.89708,157.65,157.45,27.26257454]
[1633108599636,2.67,157.62,157.45,27.26257454]
[1633108599838,2.67,157.62,157.45,51.5979548]
[1633108600036,2.67,157.62,157.45,76.11328282]
[1633108600236,2.67,157.62,157.46,24.33538026]
[1633108600439,2.67,157.62,157.48,24.89376821]
[1633108600636,2.67,157.62,157.48,2.67]
[1633108601038,2.69088,157.62,157.43,2.67]
[1633108601236,0.02088,157.61,157.43,2.67]
[1633108601437,2.67,157.6,157.43,2.67]
[1633108601637,0.02088,157.59,157.44,23.07373723]
[1633108601836,2.67,157.58,157.44,23.07373723]
[1633108602042,2.69088,157.58,157.44,23.07373723]
[1633108603043,26.26888,157.58,157.43,2.67]
[1633108603240,26.26888,157.58,157.41,2.67]
[1633108603843,0.02088,157.57,157.41,2.67]
[1633108604044,2.67,157.56,157.42,21.5321001]
[1633108604244,0.02088,157.55,157.42,21.5321001]
[1633108604445,2.67,157.54,157.42,21.5321001]
[1633108606744,2.67,157.54,157.39,2.67]
[1633108607145,0.02088,157.53,157.39,2.67]
[1633108607346,2.67,157.52,157.39,2.67]
[1633108607746,2.67,157.52,157.4,25.21529596]
[1633108609346,2.67,157.52,157.37,2.67]
[1633108610348,2.67,157.52,157.38,26.30101073]
[1633108619456,2.67,157.52,157.37,2.67]
[1633108619657,22.486,157.52,157.37,2.67]
[1633108620260,24.94506286,157.52,157.37,2.67]
[1633108621060,24.94506286,157.52,157.32,2.67]
[1633108621061,0.02088,157.51,157.32,2.67]
[1633108621259,2.67,157.5,157.32,2.67]
[1633108621458,2.69088,157.5,157.32,2.67]
[1633108622059,2.67,157.5,157.33,22.98227079]
[1633108623460,2.67,157.5,157.34,79.0667]
[1633108625460,2.67,157.5,157.33,22.98227079]
[1633108628869,2.41341878,157.47,157.32,2.67]
[1633108629085,2.67,157.46,157.32,2.67]
[1633108629271,21.109,157.46,157.32,2.67]
[1633108629468,21.109,157.46,157.24,78.4498]
[1633108629469,21.109,157.46,157.27,2.69088]
[1633108629675,21.109,157.46,157.27,2.67]
[1633108629676,2.54861131,157.42,157.27,2.67]
[1633108629870,2.54861131,157.42,157.28,29.4297436]
[1633108629871,28.80161131,157.42,157.28,29.4297436]
[1633108630071,28.80161131,157.42,157.27,2.67]
[1633108631070,28.80161131,157.42,157.27,31.017762]
[1633108631272,26.253,157.42,157.27,31.017762]
[1633108632376,2.67,157.42,157.27,31.017762]
[1633108635096,20.92868454,157.24,157.23,0.00303461]
[1633108635293,20.92868454,157.24,157.18,452.28371839]
[1633108635494,20.92868454,157.24,157.09,74.3136]
[1633108635495,2.67,157.23,157.09,74.3136]
[1633108635692,2.67,157.23,157.1,2.67]
[1633108635894,2.67,157.23,157.1,31.19123488]
[1633108636093,2.67,157.23,157.12,29.89999675]
[1633108636493,20.92868454,157.24,157.12,29.89999675]
[1633108636697,23.59868454,157.24,157.13,45.79473216]
[1633108636894,23.59868454,157.24,157.14,4.63650858]
[1633108637093,23.59868454,157.24,157.15,27.48868852]
[1633108637495,20.92868454,157.24,157.15,27.48868852]
[1633108638293,20.92868454,157.24,157.15,51.37081404]
[1633108639395,14.20868454,157.24,157.16,82.44]
[1633108639796,2.67,157.3,157.17,101.0]
[1633108639995,2.67,157.3,157.18,25.61918932]
[1633108640596,2.67,157.3,157.19,2.67]
[1633108640996,2.67,157.3,157.19,27.45418108]
[1633108642397,2.67,157.3,157.21,28.88503656]
[1633108643197,2.67,157.3,157.22,74.4122]
[1633108644401,0.03872539,157.37,157.23,101.0]
[1633108644599,2.67,157.36,157.24,24.2999703]
[1633108644802,2.70872539,157.37,157.24,43.4179703]
[1633108645000,0.03872539,157.37,157.25,2.67]
[1633108645198,0.03872539,157.38,157.25,2.67]
[1633108645899,2.67,157.39,157.25,2.67]
[1633108650803,2.67,157.39,157.25,29.41313663]
[1633108651004,2.67,157.44,157.25,44.86513663]
[1633108651204,2.67,157.44,157.27,29.15347344]
[1633108651407,2.67,157.44,157.28,2.67]
[1633108651605,2.67,157.44,157.28,170.42303663]
[1633108651804,2.67,157.44,157.29,26.74313663]
[1633108652005,2.67,157.44,157.3,28.4728665]
[1633108652808,2.67,157.44,157.3,55.21600313]
[1633108653208,2.67,157.44,157.3,118.75600313]
[1633108653409,2.67,157.44,157.3,141.54800313]
[1633108653609,2.70872539,157.48,157.3,163.532832]
[1633108653810,2.70872539,157.48,157.31,14.96264501]
[1633108654010,2.67,157.48,157.32,2.67]
[1633108654209,2.67,157.48,157.33,25.321659]
[1633108654410,2.67,157.53,157.34,2.67]
[1633108654611,2.67,157.53,157.34,121.27732887]
[1633108654810,2.67,157.53,157.34,162.9859994]
[1633108655009,2.67,157.53,157.36,23.23822852]
[1633108655212,2.67,157.53,157.37,2.67]
[1633108656210,0.03872539,157.52,157.37,2.67]
[1633108656411,2.67,157.51,157.37,2.67]
[1633108656611,0.03872539,157.5,157.37,2.67]
[1633108656809,2.67,157.49,157.37,2.67]
[1633108657211,0.03872539,157.48,157.37,2.67]
[1633108657413,2.67,157.47,157.36,23.23822852]
[1633108657611,2.70872539,157.47,157.36,23.23822852]
[1633108663418,2.70872539,157.47,157.37,77.5606]
[1633108663819,2.70872539,157.47,157.33,2.67]
[1633108664620,0.03872539,157.46,157.33,2.67]
[1633108664821,0.03872539,157.46,157.34,26.21819127]
[1633108665623,2.70872539,157.47,157.35,77.9908]
[1633108666624,2.67,157.47,157.35,92.4298]
[1633108667225,2.67,157.47,157.35,14.439]
[1633108667628,2.70872539,157.47,157.35,14.439]
[1633108667829,2.70872539,157.47,157.34,26.21819127]
[1633108669532,2.70872539,157.47,157.34,52.9613279]
[1633108669732,0.03872539,157.47,157.35,2.67]
[1633108669930,2.70872539,157.5,157.35,19.324]
[1633108670733,2.70872539,157.5,157.37,22.10989067]
[1633108674940,2.70872539,157.5,157.35,2.67]
[1633108675140,2.70872539,157.5,157.32,2.67]
[1633108675344,0.03872539,157.47,157.32,2.67]
[1633108675541,2.67,157.46,157.32,2.67]
[1633108675742,0.03872539,157.45,157.32,2.67]
[1633108675941,0.03872539,157.45,157.33,29.07876188]
[1633108676442,0.03872539,157.45,157.34,72.9831]
[1633108677244,0.03872539,157.45,157.33,29.07876188]
[1633108680547,2.67,157.44,157.29,2.67]
[1633108680747,0.03872539,157.43,157.29,2.67]
[1633108680947,2.67,157.42,157.29,2.67]
[1633108681148,0.03872539,157.41,157.29,2.67]
[1633108681347,2.70872539,157.41,157.29,2.67]
[1633108681547,0.03872539,157.4,157.3,22.98103574]
[1633108682548,2.67,157.41,157.3,22.98103574]
[1633108685552,2.67,157.41,157.27,78.8146]
[1633108685749,2.67,157.41,157.27,2.67]
[1633108686550,2.17,157.41,157.28,23.60629132]
[1633108686752,2.17,157.41,157.25,2.67]
[1633108686951,2.17,157.41,157.26,28.91341441]
[1633108687351,2.17,157.41,157.27,28.91341441]
[1633108687752,2.17,157.41,157.28,22.30768922]
[1633108688553,2.17,157.41,157.28,100.20618922]
[1633108690356,0.00872539,157.43,157.28,100.20618922]
[1633108690557,15.8935,157.64,157.59,26.89178786]
[1633108690759,2.67,157.72,157.67,17.46001346]
[1633108690958,2.67,157.72,157.71,17.46001346]
[1633108691156,3.99998654,157.71,157.6,70.64787163]
[1633108691357,12.85,157.71,157.6,70.64787163]
[1633108691558,12.85,157.71,157.61,29.03866708]
[1633108691761,6.18001346,157.71,157.62,10.02749373]
[1633108691959,6.18001346,157.71,157.63,7.35632618]
[1633108692160,6.18001346,157.71,157.64,2.67]
[1633108692359,6.18001346,157.71,157.65,7.35534505]
[1633108692561,6.18001346,157.71,157.65,10.02534505]
[1633108692759,6.18001346,157.71,157.67,66.72]
[1633108692960,6.18001346,157.71,157.69,24.81558981]
[1633108693159,6.18001346,157.71,157.7,2.67]
[1633108694363,6.18001346,157.71,157.58,66.72]
[1633108694562,6.18001346,157.71,157.59,2.67]
[1633108695361,6.18001346,157.71,157.6,26.63850402]
[1633108695562,6.18001346,157.71,157.61,2.67]
[1633108708074,6.18001346,157.71,157.61,22.157]
[1633108709276,6.18001346,157.71,157.61,2.67]
[1633108710477,0.02088,157.7,157.61,2.67]
[1633108711678,0.02088,157.7,157.58,2.67]
[1633108712077,2.67,157.69,157.58,2.67]
[1633108713279,27.95948034,157.68,157.58,2.67]
[1633108713677,2.67,157.67,157.53,2.67]